fUSD/lending_fUSD_20240630
["ID","MTS","AMOUNT","RATE_DAILY","PERIOD"]
[330716000,1719731433351,-152.63,0.00013272,2]
[330716002,1719731433361,-152.63,0.00013307,2]
[330716004,1719731433375,-152.63,0.00013342,2]
[330716005,1719731433384,-152.63,0.00013377,2]
[330716006,1719731433394,-1391.08,0.00013397,2]
[330716007,1719731433404,-853.72,0.00013397,2]
[330716008,1719731433415,-853.72,0.00013397,2]
[330716009,1719731433425,-853.72,0.00013397,2]
[330716010,1719731433434,-853.72,0.00013397,2]
[330716011,1719731433445,-856.74,0.00013397,2]
[330716012,1719731433455,-47143.809,0.00013466,2]
[330716013,1719731433466,-178.69,0.00013508,2]
[330716014,1719731433476,-299.99,0.0001364,2]
[330716015,1719731433486,-200.0,0.00013699,2]
[330716016,1719731433495,-150.77,0.00013699,2]
[330716017,1719731433505,-333.73,0.00013699,2]
[330716018,1719731433515,-2751.0,0.00013699,2]
[330716019,1719731433524,-163.41,0.00013699,2]
[330716020,1719731433534,-200.0,0.00013699,2]
[330716021,1719731433543,-2324.85,0.00013699,2]
[330716022,1719731433552,-478.2,0.00013699,2]
[330716023,1719731433562,-302.52697695,0.00013746,2]
[330716024,1719731433571,-420.0,0.00013778,2]
[330716025,1719731433581,-39433.4652,0.0001379,2]
[330716026,1719731433591,-258.6748,0.0001379,2]
[330716027,1719731433600,-3495.26787715,0.00013799,2]
[330716028,1719731433610,-1572.76064,0.0001386,2]
[330716029,1719731433621,-349.87506602,0.00013867,2]
[330716030,1719731433631,-500.0,0.00013889,3]
[330716031,1719731433640,-500.0,0.00013889,3]
[330716032,1719731433652,-500.0,0.00013889,3]
[330716033,1719731433664,-348.05,0.00013889,3]
[330716034,1719731433675,-500.0,0.00013889,3]
[330716035,1719731433684,-11247.7415,0.000139,2]
[330716036,1719731433695,-174.50989375,0.000139,2]
[330716037,1719731433705,-4315.32730948,0.000139,2]
[330716038,1719731433715,-1696.0,0.000139,2]
[330716039,1719731433724,-175.20791801,0.000139,2]
[330716040,1719731433734,-7500.0,0.000139,2]
[330716041,1719731433745,-200.0,0.00013922,2]
[330716042,1719731433754,-603.38,0.00013979,2]
[330716043,1719731433764,-603.38,0.00013979,2]
[330716044,1719731433774,-603.38,0.00013979,2]
[330716045,1719731433784,-603.38,0.00013979,2]
[330716046,1719731433793,-333.0538679,0.00013989,2]
[330716047,1719731433803,-258098.6203011,0.00013989,2]
[330716048,1719731433813,-2900.0967998,0.00013989,2]
[330716049,1719731433829,-9854.1982348,0.0001399,2]
[330716050,1719731433839,-333.0538679,0.0001399,2]
[330716051,1719731433848,-603.38,0.0001399,2]
[330716052,1719731433858,-2504.6499069,0.0001399,2]
[330716053,1719731433868,-159.04085832,0.00013999,2]
[330716054,1719731433878,-500.0,0.00013999,3]
[330716055,1719731433887,-285.28,0.00013999,3]
[330716056,1719731433897,-500.0,0.00013999,3]
[330716057,1719731433906,-500.0,0.00013999,3]
[330716058,1719731433916,-672.32,0.00013999,3]
[330716059,1719731433925,-607.95,0.00013999,3]
[330716060,1719731433935,-538.73,0.00013999,3]
[330716061,1719731433944,-566.23,0.00013999,3]
[330716062,1719731433954,-500.0,0.00013999,3]
[330716063,1719731433963,-277.35,0.00013999,3]
[330716064,1719731433974,-471.04,0.00013999,3]
[330716065,1719731433983,-510.62,0.00013999,3]
[330716066,1719731433993,-500.25789713,0.00013999,3]
[330716067,1719731434003,-214.96,0.00013999,3]
[330716068,1719731434012,-500.0,0.00013999,3]
[330716069,1719731434021,-500.0,0.00013999,3]
[330716070,1719731434031,-500.0,0.00013999,3]
[330716071,1719731434040,-500.0,0.00013999,3]
[330716072,1719731434050,-291.64,0.00013999,3]
[330716073,1719731434059,-500.0,0.00013999,3]
[330716074,1719731434070,-426.81,0.00013999,3]
[330716075,1719731434080,-530.65,0.00013999,3]
[330716076,1719731434089,-500.0,0.00013999,3]
[330716077,1719731434099,-469.53,0.00013999,3]
[330716078,1719731434108,-286.51,0.00013999,3]
[330716079,1719731434118,-500.0,0.00013999,3]
[330716080,1719731434127,-500.0,0.00013999,3]
[330716081,1719731434137,-500.0,0.00013999,3]
[330716082,1719731434146,-500.0,0.00013999,3]
[330716083,1719731434384,-789.0,0.00014,2]
[330716084,1719731434405,-87248.85435403,0.00014,2]
[330716085,1719731434427,-47324.08572949,0.00014,2]
[330716086,1719731434439,-1284.35585131,0.00014,2]
[330716087,1719731434450,-726.72999162,0.00014,2]
[330716088,1719731434462,-2194.55656055,0.00014,2]
[330716089,1719731434474,-265014.39583427,0.00014,2]
[330716090,1719731434485,-49469.8797289,0.00014,2]
[330716091,1719731434500,-781.03258899,0.00014,2]
[330716115,1719731438474,-308.6,0.00012889,2]
[330716116,1719731438484,-89.74034014,0.00013998,3]
[330716117,1719731438496,-410.25965986,0.00013998,3]
[330716118,1719731438506,-555.0,0.00014,2]
[330716119,1719731438516,-3307.00569029,0.00014,2]
[330716120,1719731438528,-2450.76963214,0.00014,2]
[330716121,1719731438818,-1173337.96938894,0.00014,2]
[330716124,1719731438829,-1000.0,0.00014,2]
[330716126,1719731438839,-10000.0,0.00014,2]
[330716127,1719731438848,-500.0,0.00014108,3]
[330716129,1719731438858,-500.0,0.00014108,3]
[330716131,1719731438868,-500.0,0.00014108,3]
[330716134,1719731438877,-800.0,0.00014109,2]
[330716135,1719731438887,-500.0,0.00014109,3]
[330716137,1719731438897,-672.32,0.00014109,3]
[330716139,1719731438907,-550.19,0.00014109,3]
[330716141,1719731438918,-500.0,0.00014109,3]
[330716143,1719731438927,-500.0,0.00014109,3]
[330716145,1719731438938,-500.0,0.00014109,3]
[330716147,1719731438947,-590.08,0.00014109,3]
[330716149,1719731438957,-500.0,0.00014109,3]
[330716151,1719731438966,-500.0,0.00014109,3]
[330716153,1719731438976,-500.0,0.00014109,3]
[330716155,1719731438985,-500.0,0.00014109,3]
[330716157,1719731438995,-500.0,0.00014109,3]
[330716159,1719731439004,-500.0,0.00014109,3]
[330716162,1719731439016,-1036.0,0.000142,2]
[330716163,1719731439026,-500.0,0.00014217,3]
[330716166,1719731439037,-500.0,0.00014218,3]
[330716167,1719731439047,-500.0,0.00014218,3]
[330716169,1719731439058,-500.0,0.00014218,3]
[330716172,1719731439069,-672.32,0.00014218,3]
[330716174,1719731439082,-500.0,0.00014218,3]
[330716176,1719731439093,-500.0,0.00014218,3]
[330716178,1719731439104,-500.0,0.00014218,3]
[330716180,1719731439115,-500.0,0.00014218,3]
[330716182,1719731439128,-500.0,0.00014218,3]
[330716184,1719731439138,-500.0,0.00014218,3]
[330716186,1719731439149,-500.0,0.00014218,3]
[330716188,1719731439159,-500.0,0.00014218,3]
[330716190,1719731439170,-279.50643963,0.00014218,3]
[330716192,1719731439181,-500.0,0.00014327,3]
[330716194,1719731439191,-500.0,0.00014327,3]
[330716196,1719731439202,-500.0,0.00014327,3]
[330716198,1719731439212,-500.0,0.00014328,3]
[330716200,1719731439222,-672.32,0.00014328,3]
[330716202,1719731439233,-500.0,0.00014328,3]
[330716204,1719731439244,-379.83,0.00014328,3]
[330716206,1719731439255,-500.0,0.00014328,3]
[330716208,1719731439266,-644.32,0.00014328,3]
[330716210,1719731439276,-551.05,0.00014328,3]
[330716212,1719731439286,-500.0,0.00014328,3]
[330716214,1719731439297,-500.0,0.00014328,3]
[330716216,1719731439307,-500.0,0.00014328,3]
[330716218,1719731439318,-500.0,0.00014436,3]
[330716220,1719731439332,-500.0,0.00014437,2]
[330716222,1719731439342,-500.0,0.00014437,2]
[330716224,1719731439352,-474.36,0.00014437,3]
[330716226,1719731439362,-500.0,0.00014437,3]
[330716228,1719731439373,-672.32,0.00014438,3]
[330716230,1719731439383,-500.0,0.00014438,3]
[330716232,1719731439394,-500.0,0.00014438,3]
[330716234,1719731439405,-500.0,0.00014438,3]
[330716236,1719731439416,-500.0,0.00014438,3]
[330716238,1719731439426,-500.0,0.00014438,3]
[330716240,1719731439437,-208.23,0.00014546,3]
[330716242,1719731439447,-551.71,0.00014547,3]
[330716243,1719731439458,-672.32,0.00014547,3]
[330716244,1719731439468,-500.0,0.00014547,3]
[330716245,1719731439479,-500.0,0.00014547,3]
[330716246,1719731439489,-500.0,0.00014547,3]
[330716247,1719731439499,-500.0,0.00014547,3]
[330716248,1719731439509,-500.0,0.00014547,3]
[330716249,1719731439520,-193.24246027,0.00014612,2]
[330716250,1719731439530,-583.18320928,0.00014612,2]
[330716251,1719731439540,-672.32,0.00014657,3]
[330716252,1719731439550,-500.0,0.00014657,3]
[330716254,1719731439560,-500.0,0.00014657,3]
[330716256,1719731439571,-500.0,0.00014657,3]
[330716258,1719731439583,-500.0,0.00014657,3]
[330716260,1719731439593,-500.0,0.00014657,3]
[330716262,1719731439603,-12984.0173478,0.00014702,2]
[330716264,1719731439613,-1173.17787073,0.00014702,2]
[330716314,1719731440205,-22.81659257,0.00014702,2]
[330716316,1719731440216,-74602.120802,0.00014712,7]
[330716318,1719731440227,-201393.15530107,0.00014712,7]
[330716320,1719731440239,-339.37714384,0.00014712,7]
[330716322,1719731440253,-1116.0325899,0.00014712,7]
[330716324,1719731440266,-1196.04481518,0.00014712,7]
[330716326,1719731440277,-4600.83479812,0.00014712,7]
[330716328,1719731440288,-696.2,0.00014712,7]
[330716331,1719731440300,-748.45787279,0.00014712,7]
[330716333,1719731440311,-2854.48132401,0.00014712,7]
[330716338,1719731440358,-117182.03944402,0.00014712,7]
[330716341,1719731440370,-352.75909744,0.00014712,7]
[330716343,1719731440401,-6485.92547838,0.00014712,7]
[330716344,1719731440413,-156615.89462425,0.00014712,7]
[330716345,1719731440423,-3495.26787709,0.00014712,2]
[330716346,1719731440433,-38240.0,0.00014712,2]
[330716347,1719731440443,-4315.32730943,0.00014717,2]
[330716348,1719731440453,-1064.40851654,0.00014765,5]
[330716349,1719731440462,-672.32,0.00014766,3]
[330716350,1719731440471,-500.0,0.00014766,3]
[330716351,1719731440481,-500.0,0.00014766,3]
[330716352,1719731440490,-398.4,0.00014766,3]
[330716353,1719731440500,-500.0,0.00014766,3]
[330716354,1719731440509,-500.0,0.00014766,3]
[330716355,1719731440519,-1059.91,0.00014767,2]
[330716356,1719731440528,-169.41,0.00014767,2]
[330716357,1719731440538,-281.98,0.00014767,2]
[330716358,1719731440547,-152.02,0.00014767,2]
[330716359,1719731440556,-713.56,0.00014767,2]
[330716360,1719731440566,-429.02,0.00014767,2]
[330716361,1719731440575,-160.029,0.00014824,2]
[330716362,1719731440584,-160.029,0.00014824,2]
[330716363,1719731440595,-160.029,0.00014824,2]
[330716364,1719731440605,-160.029,0.00014824,2]
[330716365,1719731440614,-160.029,0.00014824,2]
[330716366,1719731440624,-672.32,0.00014876,3]
[330716367,1719731440634,-500.0,0.00014876,3]
[330716368,1719731440644,-500.0,0.00014876,3]
[330716369,1719731440655,-500.0,0.00014876,3]
[330716370,1719731440668,-500.0,0.00014876,3]
[330716371,1719731440678,-284.84716055,0.00014876,2]
[330716372,1719731440688,-672.32,0.00014986,3]
[330716373,1719731440698,-500.0,0.00014986,3]
[330716374,1719731440708,-500.0,0.00014986,3]
[330716375,1719731440718,-500.0,0.00014986,3]
[330716376,1719731440727,-170.69804423,0.00015,2]
[330716377,1719731440739,-5000.0,0.00015,2]
[330716378,1719731440749,-69147.28463013,0.00015,2]
[330716379,1719731440762,-546.06179378,0.00015,2]
[330716380,1719731440773,-5060.62730203,0.00015,2]
[330716381,1719731440785,-719.26763437,0.00015,2]
[330716382,1719731440799,-33276.14929742,0.00015,2]
[330716384,1719731440812,-101332.43249472,0.00015,2]
[330716386,1719731440823,-3967.8675886,0.00015,2]
[330716388,1719731440835,-2493.38298312,0.00015,2]
[330716389,1719731440845,-622.7781919,0.00015,2]
[330716390,1719731440855,-15892.83292738,0.00015,2]
[330716391,1719731440866,-1741.65315333,0.00015,2]
[330716392,1719731440877,-4896.92,0.00015,2]
[330716393,1719731440890,-2248.73188174,0.00015,2]
[330716394,1719731440899,-173.21,0.00015046,2]
[330716395,1719731440908,-672.32,0.00015095,3]
[330716396,1719731440918,-500.0,0.00015095,3]
[330716397,1719731440928,-500.0,0.00015095,3]
[330716398,1719731440937,-500.0,0.00015095,3]
[330716399,1719731440946,-587.0,0.00015117,2]
[330716400,1719731440957,-485.55,0.00015168,2]
[330716401,1719731440967,-672.32,0.00015205,3]
[330716402,1719731440976,-500.0,0.00015205,3]
[330716403,1719731440985,-500.0,0.00015205,3]
[330716404,1719731440994,-500.0,0.00015205,3]
[330716405,1719731441004,-672.32,0.00015314,3]
[330716406,1719731441013,-500.0,0.00015314,3]
[330716407,1719731441022,-301.9499552,0.00015314,3]
[330716408,1719731441037,-198.0500448,0.00015314,3]
[330716409,1719731441046,-106.28730723,0.00015314,3]
[330716410,1719731441058,-393.71269277,0.00015314,3]
[330716411,1719731441067,-672.32,0.00015424,3]
[330716412,1719731441078,-229.59298657,0.00015424,3]
[330716413,1719731441090,-270.40701343,0.00015424,3]
[330716414,1719731441099,-500.0,0.00015424,3]
[330716415,1719731441109,-500.0,0.00015424,3]
[330716416,1719731441120,-200.0,0.00015469,2]
[330716417,1719731441129,-193.09318657,0.00015533,3]
[330716444,1719731443277,-532.75455604,0.00013998,2]
[330716445,1719731443286,-479.22681343,0.00015533,3]
[330716446,1719731443296,-500.0,0.00015533,3]
[330716447,1719731443306,-629.97231733,0.00015533,3]
[330716449,1719731443315,-500.0,0.00015533,3]
[330716451,1719731443324,-500.0,0.00015533,2]
[330716453,1719731443335,-4315.32730943,0.00015535,2]
[330716455,1719731443344,-1355.21651277,0.00015579,2]
[330716457,1719731443353,-672.32,0.00015643,3]
[330716459,1719731443362,-500.0,0.00015643,3]
[330716460,1719731443371,-500.0,0.00015643,3]
[330716461,1719731443380,-800.0,0.00015677,2]
[330716462,1719731443389,-3495.26787709,0.00015734,2]
[330716463,1719731443398,-672.32,0.00015753,3]
[330716464,1719731443407,-417.53,0.00015753,3]
[330716465,1719731443417,-500.0,0.00015753,3]
[330716466,1719731443426,-672.32,0.00015862,3]
[330716467,1719731443436,-500.0,0.00015862,3]
[330716468,1719731443446,-672.32,0.00015972,3]
[330716469,1719731443456,-500.0,0.00015972,3]
[330716470,1719731443466,-500.0,0.00016081,2]
[330716471,1719731443476,-500.0,0.00016081,2]
[330716472,1719731443485,-672.32,0.00016081,3]
[330716473,1719731443494,-500.0,0.00016081,3]
[330716474,1719731443504,-869.0,0.000161,2]
[330716475,1719731443513,-173.21,0.00016111,2]
[330716476,1719731443522,-672.32,0.00016191,3]
[330716477,1719731443531,-500.0,0.00016191,3]
[330716478,1719731443542,-672.32,0.00016301,3]
[330716479,1719731443551,-564.15856998,0.00016301,3]
[330716480,1719731443561,-4315.32730943,0.00016352,2]
[330716481,1719731443571,-1572.76064,0.0001636,2]
[330716482,1719731443582,-616.5080945,0.00016376,2]
[330716483,1719731443594,-964.0879055,0.00016376,2]
[330716484,1719731443604,-3711.65916387,0.000164,2]
[330716485,1719731443619,-647.34083613,0.000164,2]
[330716486,1719731443628,-672.32,0.0001641,3]
[330716487,1719731443638,-150.77,0.00016438,2]
[330716488,1719731443648,-163.41,0.00016438,2]
[330716489,1719731443662,-895.94148662,0.000165,2]
[330716490,1719731443674,-424.34255667,0.000165,2]
[330716491,1719731443686,-438.77008494,0.000165,2]
[330716492,1719731443697,-151.0,0.00016501,2]
[330716493,1719731443706,-6.03648879,0.00016501,2]
[330716494,1719731443717,-206.96351121,0.00016501,2]
[330716495,1719731443728,-190.924,0.00016501,2]
[330716496,1719731443738,-260.569,0.00016501,2]
[330716497,1719731443748,-162.0,0.00016501,2]
[330716498,1719731443759,-163.084,0.00016501,2]
[330716499,1719731443769,-196.002,0.00016501,2]
[330716500,1719731443780,-200.0,0.00016501,2]
[330716501,1719731443789,-263.643,0.00016501,2]
[330716502,1719731443799,-278.634,0.00016501,2]
[330716503,1719731443808,-160.014,0.00016501,2]
[330716504,1719731443818,-238.924,0.00016501,2]
[330716505,1719731443828,-248.524,0.00016501,2]
[330716506,1719731443838,-151.507,0.00016501,2]
[330716507,1719731443847,-248.162,0.00016501,2]
[330716508,1719731443856,-169.053,0.00016501,2]
[330716509,1719731443865,-1830.0,0.00016501,2]
[330716510,1719731443874,-1273.0,0.00016501,2]
[330716511,1719731443883,-33.44679148,0.00016501,2]
[330716512,1719731443896,-414.55320852,0.00016501,2]
[330716513,1719731443905,-242.48224031,0.0001652,3]
[330716514,1719731443925,-430.00775969,0.0001652,3]
[330716515,1719731443935,-348.93361426,0.00016586,2]
[330716516,1719731443946,-474.06638574,0.00016586,2]
[330716517,1719731443956,-192.33,0.00016712,2]
[330716520,1719731443965,-213.96537124,0.00016757,2]
[330716523,1719731443976,-1168.35355364,0.00016757,2]
[330716526,1719731443987,-500.0,0.00016757,2]
[330716530,1719731444002,-730.07140233,0.00016757,2]
[330716533,1719731444013,-652.62529538,0.00016757,2]
[330716535,1719731444024,-230.2522545,0.00016757,2]
[330716537,1719731444034,-2109.203014,0.00016958,2]
[330716539,1719731444043,-151.0,0.00016969,2]
[330716541,1719731444052,-156.930885,0.00016969,2]
[330716543,1719731444061,-156.930885,0.00016969,2]
[330716545,1719731444070,-9116.97350237,0.00016969,2]
[330716547,1719731444083,-524.50138026,0.00016969,2]
[330716567,1719731446220,-227.04865744,0.00011199,2]
[330716568,1719731446230,-272.95134256,0.00015195,2]
[330716569,1719731446378,-420.47011144,0.00015195,2]
[330716570,1719731446388,-506.0,0.00016969,2]
[330716571,1719731446398,-65889.50522376,0.00016969,2]
[330716572,1719731446410,-1610.08386785,0.00016969,2]
[330716573,1719731446422,-784.34273564,0.00016969,2]
[330716574,1719731446614,-486466.95467952,0.00016969,2]
[330716575,1719731446630,-257735.28,0.00016969,2]
[330716576,1719731446643,-171706.293,0.00016969,2]
[330716577,1719731446660,-103252.25800238,0.00016969,2]
[330716578,1719731446670,-2000.0,0.00016986,3]
[330716579,1719731446681,-345.0,0.00017,2]
[330716580,1719731446691,-200.0,0.00017016,2]
[330716581,1719731446702,-4315.32730943,0.00017169,2]
[330716582,1719731446711,-173.21,0.00017175,2]
[330716583,1719731446722,-500.0,0.00017177,2]
[330716584,1719731446734,-800.0,0.00017244,2]
[330716585,1719731446743,-485.55,0.00017432,2]
[330716586,1719731446753,-11481.0,0.000175,3]
[330716587,1719731446763,-199.4,0.00017521,2]
[330716588,1719731446772,-302.62,0.00017672,2]
[330716589,1719731446782,-654.00415617,0.00017703,2]
[330716590,1719731446792,-500.0,0.00017725,2]
[330716591,1719731446802,-3495.26787709,0.00017779,2]
[330716592,1719731446812,-4315.32730943,0.00017986,2]
[330716593,1719731446823,-8228.1571114,0.00017988,2]
[330716594,1719731446833,-598.8689689,0.00017988,2]
[330716595,1719731446843,-155.0,0.00018,2]
[330716596,1719731446853,-31399.5904652,0.00018,3]
[330716597,1719731446865,-239788.83915799,0.00018,3]
[330716598,1719731446876,-79509.6545,0.00018,3]
[330716599,1719731446888,-65734.3395,0.00018,3]
[330716600,1719731446899,-678.44,0.00018,3]
[330716601,1719731446917,-2043.4,0.00018,3]
[330716602,1719731446929,-500.49998659,0.00018,3]
[330716603,1719731446940,-1160.28479229,0.00018,3]
[330716616,1719732250659,449.03,0.00011035,2]
[330716620,1719732581212,155.0,0.00011098,2]
[330716621,1719732631842,371.63466835,0.00011098,2]
[330716638,1719732634139,-250.0,0.00012887,2]
[330716640,1719732634149,-250.0,0.00012957,2]
[330716642,1719732634158,-501.61121898,0.00013067,2]
[330716643,1719732634397,-398.38878102,0.00013067,2]
[330716644,1719732634407,-1933.0353963,0.00013067,2]
[330716645,1719732634419,-892.30034146,0.00013067,2]
[330716646,1719732634430,-4458.23572949,0.00013067,2]
[330716647,1719732634441,-20190.0722724,0.00013067,2]
[330716648,1719732634453,-22526.35626035,0.00013067,2]
[330716649,1719732634463,-267.0,0.0001314,2]
[330716650,1719732634472,-300.0,0.0001314,2]
[330716651,1719732634483,-14064.2283,0.00013141,2]
[330716652,1719732634492,-200.0,0.0001321,2]
[330716653,1719732634501,-499.99,0.0001321,2]
[330716654,1719732634511,-169.03,0.00013242,2]
[330716655,1719732634520,-299.99,0.00013242,2]
[330716656,1719732634531,-449.03,0.00013299,2]
[330716657,1719732634540,-1000.0,0.00013337,2]
[330716658,1719732634550,-150.99,0.00013337,2]
[330716659,1719732634559,-349.46,0.00013699,2]
[330716660,1719732634569,-241.24,0.00013741,2]
[330716661,1719732634579,-14011.67032427,0.00013888,2]
[330716662,1719732634588,-8376.01,0.00013889,3]
[330716663,1719732634598,-900.0,0.00013889,2]
[330716664,1719732634609,-227.04865744,0.00013889,2]
[330716665,1719732634619,-221.65705849,0.00013889,2]
[330716666,1719732634628,-2156.47780203,0.00013899,2]
[330716667,1719732634638,-1338.35,0.00013989,2]
[330716668,1719732634648,-19649.68,0.00013998,3]
[330716669,1719732634657,-2458.12770811,0.00013998,2]
[330716670,1719732634667,-500.0,0.00013998,3]
[330716671,1719732634677,-500.0,0.00013998,3]
[330716672,1719732634687,-12650.91,0.00013998,3]
[330716673,1719732634696,-9124.15898127,0.00013998,3]
[330716674,1719732634708,-854.82014811,0.00013998,3]
[330716676,1719732634719,-272.57087062,0.00013998,3]
[330716678,1719732634729,-221.95912938,0.00013998,3]
[330716680,1719732634740,-1426.0,0.00013998,3]
[330716688,1719732638487,-499.97815209,0.00013998,3]
[330716690,1719732638728,-1270.89616337,0.00013998,3]
[330716691,1719732638740,-308.095,0.00013998,3]
[330716698,1719732640721,-1020.52799995,0.00013928,2]
[330716699,1719732640734,-302.88669205,0.00013928,2]
[330716700,1719732640744,-25.73246265,0.00013998,3]
[330716701,1719732640962,-3762.81909251,0.00013998,3]
[330716702,1719732640972,-500.05051267,0.00013999,3]
[330716703,1719732640981,-500.0,0.00013999,3]
[330716704,1719732640991,-294.96738106,0.00013999,3]
[330716705,1719732641000,-18717.29,0.00013999,3]
[330716706,1719732641009,-8376.01,0.00013999,3]
[330716707,1719732641019,-2500.0,0.00014008,2]
[330716708,1719732641028,-500.0,0.00014107,3]
[330716709,1719732641039,-500.0,0.00014107,3]
[330716710,1719732641048,-9547.13,0.00014107,3]
[330716711,1719732641058,-17469.5,0.00014107,3]
[330716712,1719732641068,-60355.82678178,0.00014107,2]
[330716722,1719732643524,-39644.17321822,0.00014107,2]
[330716723,1719732643535,-6583.47,0.00014107,3]
[330716724,1719732643544,-19649.68,0.00014108,3]
[330716726,1719732643554,-500.0,0.00014108,3]
[330716727,1719732643563,-306.72447834,0.00014108,3]
[330716728,1719732643572,-12650.91,0.00014108,3]
[330716729,1719732643581,-10251.55,0.00014108,3]
[330716730,1719732643590,-8376.01,0.00014108,3]
[330716731,1719732643600,-574.80223396,0.00014108,3]
[330716732,1719732643609,-7515.48,0.00014108,3]
[330716733,1719732643618,-11349.98,0.00014108,3]
[330716734,1719732643628,-644.37,0.00014109,3]
[330716735,1719732643638,-18717.29,0.00014109,3]
[330716736,1719732643647,-500.0,0.00014216,3]
[330716737,1719732643656,-500.0,0.00014216,3]
[330716738,1719732643666,-500.0,0.00014216,3]
[330716739,1719732643676,-500.0,0.00014216,3]
[330716740,1719732643687,-500.0,0.00014216,3]
[330716741,1719732643697,-500.0,0.00014216,3]
[330716742,1719732643710,-500.0,0.00014216,3]
[330716743,1719732643721,-19649.68,0.00014217,3]
[330716744,1719732643730,-500.0,0.00014217,3]
[330716745,1719732643739,-12650.91,0.00014217,3]
[330716746,1719732643748,-10251.55,0.00014217,3]
[330716747,1719732643758,-500.0,0.00014217,3]
[330716748,1719732643767,-500.0,0.00014217,3]
[330716749,1719732643776,-9547.13,0.00014217,3]
[330716750,1719732643787,-7515.48,0.00014217,3]
[330716751,1719732643796,-17469.5,0.00014217,3]
[330716752,1719732643806,-9410.3493188,0.00014217,2]
[330716753,1719732643818,-775.66543013,0.00014217,2]
[330716754,1719732643893,-0.00520371,0.00014217,2]
[330716757,1719732646548,-430.53999999,0.00013452,2]
[330716758,1719732646560,-379.46504189,0.00013452,2]
[330716759,1719732646571,-174.43569106,0.00013452,2]
[330716760,1719732646581,-632.59099711,0.00013561,2]
[330716761,1719732646801,-318.81004884,0.00013561,2]
[330716762,1719732646813,-600.59127147,0.00013561,2]
[330716763,1719732646825,-415.0,0.00013561,2]
[330716764,1719732646837,-618.28,0.00013561,2]
[330716765,1719732646849,-7896.35768258,0.00013561,2]
[330716766,1719732646858,-35479.19426315,0.00014217,2]
[330716767,1719732647026,-851.02609563,0.00014217,2]
[330716770,1719732647041,-1545.95,0.00014217,2]
[330716784,1719732814975,9238.1893607,0.00011097,2]
[330716785,1719732827982,5381.45376565,0.00011098,2]
[330716786,1719732891720,348.46797126,0.00011098,2]
[330716787,1719732902290,684.10705351,0.00011098,2]
[330716788,1719732927560,1500.0,0.00011098,2]
[330716789,1719732988912,253.90432169,0.00011098,2]
[330716791,1719733059966,-600.0,0.00011199,2]
[330716792,1719733098396,500.0,0.00011098,2]
[330716794,1719733247200,209.99775219,0.00011098,2]
[330716795,1719733275187,10000.0,0.00025999,120]
[330716796,1719733316593,158.95381059,0.00011098,2]
[330716797,1719733387806,293.64910993,0.00011098,2]
[330716798,1719733442555,599.27979208,0.00011098,2]
[330716799,1719733444805,454.97,0.00010458,2]
[330716800,1719733487997,4915.73241199,0.00011098,2]
[330716801,1719733511588,690.28734422,0.00011098,2]
[330716802,1719733566642,533.11260756,0.00011098,2]
[330716803,1719733623010,7440.46503784,0.00011098,2]
[330716804,1719733637387,155.0,0.00011098,2]
[330716805,1719733698424,235.46770595,0.00011098,2]
[330716806,1719733816767,155.0,0.00011098,2]
[330716829,1719733831384,-172.42966663,0.00011167,2]
[330716831,1719733831394,-232.07033287,0.00011198,2]